bitfinex/quotes_BTCUSD_20241002
["timestamp","ask_amount","ask_price","bid_price","bid_amount"]
[1727883336818,0.0012,61979.0,61978.0,0.51504654]
[1727883337039,0.0002,61979.0,61978.0,0.50404654]
[1727883337285,0.0012,61979.0,61978.0,0.51804654]
[1727883337475,0.0012,61979.0,61978.0,0.50404654]
[1727883337734,0.0012,61979.0,61978.0,0.49004654]
[1727883337959,0.0002,61979.0,61978.0,0.49004654]
[1727883338181,0.0012,61979.0,61978.0,0.50404654]
[1727883338656,0.0002,61979.0,61978.0,0.46704654]
[1727883338881,0.0012,61979.0,61978.0,0.49504654]
[1727883339115,0.0012,61979.0,61978.0,0.47604654]
[1727883339366,0.0012,61979.0,61978.0,0.48104654]
[1727883339560,0.0012,61979.0,61978.0,0.49504654]
[1727883339822,0.0012,61979.0,61978.0,0.48104654]
[1727883340016,0.0012,61979.0,61978.0,0.49504654]
[1727883340273,0.0002,61979.0,61978.0,0.47604654]
[1727883340506,0.0012,61979.0,61978.0,0.67476988]
[1727883340974,0.0002,61979.0,61978.0,0.66276988]
[1727883341417,0.0012,61979.0,61978.0,0.67476988]
[1727883345812,0.0012,61979.0,61978.0,0.38973493]
[1727883346040,0.00202,61979.0,61978.0,0.38973493]
[1727883346269,0.00202,61979.0,61978.0,0.22654822]
[1727883347430,0.00102,61979.0,61978.0,0.20054822]
[1727883347657,0.00202,61979.0,61978.0,0.21254822]
[1727883348103,0.00102,61979.0,61978.0,0.20054822]
[1727883348597,0.00202,61979.0,61978.0,0.37896136]
[1727883348841,0.00202,61979.0,61978.0,0.22554822]
[1727883349084,0.00202,61979.0,61978.0,0.21254822]
[1727883349349,0.00202,61979.0,61978.0,0.22554822]
[1727883350383,0.00202,61979.0,61978.0,0.2287748]
[1727883351315,0.00202,61979.0,61978.0,0.39196151]
[1727883351551,0.00202,61979.0,61978.0,0.38873493]
[1727883352490,0.00202,61979.0,61978.0,0.22554822]
[1727883355528,0.00202,61979.0,61978.0,0.38873493]
[1727883356764,0.00202,61979.0,61978.0,0.48873493]
[1727883356977,0.00202,61979.0,61978.0,0.56943493]
[1727883357405,0.00202,61979.0,61978.0,0.64042675]
[1727883357620,0.00102,61979.0,61978.0,0.62842675]
[1727883357851,0.00102,61979.0,61978.0,0.55743493]
[1727883358056,0.00202,61979.0,61978.0,0.57007493]
[1727883358282,0.00202,61979.0,61978.0,0.61767966]
[1727883358491,0.00102,61979.0,61978.0,0.54607493]
[1727883358692,0.00102,61979.0,61978.0,0.61706675]
[1727883358896,0.00202,61979.0,61978.0,0.57107493]
[1727883359128,0.00202,61979.0,61978.0,0.55707493]
[1727883359369,0.00202,61979.0,61978.0,0.60470832]
[1727883359601,0.00202,61979.0,61978.0,0.22718822]
[1727883359830,0.00202,61979.0,61978.0,0.39037493]
[1727883360056,0.00102,61979.0,61978.0,0.56609827]
[1727883360273,0.00102,61979.0,61978.0,0.57109827]
[1727883360499,0.00102,61979.0,61978.0,0.58009827]
[1727883360932,0.00102,61979.0,61978.0,0.58509827]
[1727883361146,0.00102,61979.0,61978.0,0.68009827]
[1727883361358,0.00102,61979.0,61978.0,0.44101117]
[1727883361581,0.00102,61979.0,61978.0,0.21618822]
[1727883361803,0.00102,61979.0,61978.0,0.23018822]
[1727883363536,0.00102,61979.0,61978.0,0.21618822]
[1727883363990,0.00102,61979.0,61978.0,0.23018822]
[1727883364233,0.00102,61979.0,61978.0,0.23341466]
[1727883364440,0.00102,61979.0,61978.0,0.21941466]
[1727883364652,0.00102,61979.0,61978.0,0.23041466]
[1727883364870,0.00102,61979.0,61978.0,0.21641466]
[1727883365299,0.00102,61979.0,61978.0,0.22941466]
[1727883365955,0.00102,61979.0,61978.0,0.39260137]
[1727883366182,0.00102,61979.0,61978.0,0.48937493]
[1727883366397,0.00102,61979.0,61978.0,0.4934686]
[1727883367031,0.00102,61979.0,61978.0,0.5164686]
[1727883369638,0.00102,61979.0,61978.0,0.4934686]
[1727883370073,0.00102,61979.0,61978.0,0.33028189]
[1727883371327,0.07662,61979.0,61978.0,0.22618822]
[1727883371755,0.00102,61979.0,61978.0,0.22618822]
[1727883371970,0.00102,61979.0,61978.0,0.22941482]
[1727883372622,0.00102,61979.0,61978.0,0.22941483]
[1727883374171,0.00102,61979.0,61978.0,0.22618822]
[1727883374607,0.00102,61979.0,61978.0,0.22941474]
[1727883375458,0.00102,61979.0,61978.0,0.22618822]
[1727883380771,0.00102,61979.0,61978.0,0.20218822]
[1727883381406,0.00102,61979.0,61978.0,0.20818822]
[1727883382576,0.00102,61979.0,61978.0,0.01443122]
[1727883382802,0.26627433,61979.0,61978.0,0.02143122]
[1727883383007,0.237464,61979.0,61978.0,0.02143122]
[1727883383212,0.237464,61979.0,61978.0,0.01464]
[1727883383620,0.237464,61979.0,61978.0,0.00764]
[1727883384040,0.238464,61979.0,61978.0,0.00164]
[1727883384463,0.16136,61973.0,61972.0,0.00164]
[1727883384926,0.43086,61973.0,61972.0,0.0084588]
[1727883385128,0.43086,61973.0,61972.0,0.00164]
[1727883385569,0.05238994,61979.0,61972.0,0.00164]
[1727883385771,0.05238994,61979.0,61978.0,0.161347]
[1727883385772,0.00402,61979.0,61978.0,0.161347]
[1727883385973,0.00402,61979.0,61978.0,0.19697791]
[1727883386195,0.00302,61979.0,61978.0,0.36697009]
[1727883386412,0.00302,61979.0,61978.0,0.36374918]
[1727883386634,0.00102,61979.0,61978.0,0.36374918]
[1727883387125,0.00102,61979.0,61978.0,0.37074918]
[1727883387329,0.00102,61979.0,61978.0,0.20056247]
[1727883387774,0.00102,61979.0,61978.0,0.20356247]
[1727883387997,0.00902,61979.0,61978.0,0.16915247]
[1727883388932,0.00102,61979.0,61978.0,0.16815247]
[1727883389153,0.26864334,61979.0,61978.0,0.16815247]
[1727883389386,0.08192,61979.0,61978.0,0.16815247]
[1727883389801,0.08192,61979.0,61978.0,0.18225247]
[1727883390027,0.08192,61979.0,61978.0,0.16825247]
[1727883390232,0.08192,61979.0,61978.0,0.17025247]
[1727883390711,0.08292,61979.0,61978.0,0.17825247]
[1727883390961,0.00202,61979.0,61978.0,0.17825247]
[1727883391191,0.00102,61979.0,61978.0,0.16825247]
[1727883391406,0.00102,61979.0,61978.0,0.17325247]
[1727883391833,0.00102,61979.0,61978.0,0.17025247]
[1727883392056,0.00102,61979.0,61978.0,0.16825247]
[1727883392493,0.00702,61979.0,61978.0,0.16925247]
[1727883393140,0.00702,61979.0,61978.0,0.17089247]
[1727883393141,0.01002,61979.0,61978.0,0.17089247]
[1727883393349,0.01002,61979.0,61978.0,0.20330247]
[1727883393561,0.00702,61979.0,61978.0,0.20330247]
[1727883393805,0.00102,61979.0,61978.0,0.20230247]
[1727883394007,0.00102,61979.0,61978.0,0.20530247]
[1727883394222,0.00102,61979.0,61978.0,0.20430247]
[1727883394669,0.00102,61979.0,61978.0,0.20830247]
[1727883394875,0.00102,61979.0,61978.0,0.20230247]
[1727883395097,0.00202,61979.0,61978.0,0.20930247]
[1727883395533,0.00102,61979.0,61978.0,0.20230247]
[1727883395804,0.00202,61979.0,61978.0,0.21230247]
[1727883396261,0.00202,61979.0,61978.0,0.22030247]
[1727883396489,0.07742,61979.0,61978.0,0.18789247]
[1727883396907,0.07742,61979.0,61978.0,0.01854547]
[1727883397319,0.238764,61979.0,61978.0,0.02354547]
[1727883397527,0.07642,61979.0,61978.0,0.00854547]
[1727883397940,0.07842,61979.0,61978.0,0.01554547]
[1727883398380,0.07842,61979.0,61978.0,0.17689247]
[1727883398572,0.07742,61979.0,61978.0,0.16989247]
[1727883398790,0.08342,61979.0,61978.0,0.17089247]
[1727883399208,0.08242,61979.0,61978.0,0.17089247]
[1727883399675,0.08542,61979.0,61978.0,0.17089247]
[1727883400328,0.01002,61979.0,61978.0,0.17089247]
[1727883401386,0.19674334,61979.0,61978.0,0.00954547]
[1727883401608,0.19674334,61979.0,61978.0,0.17089247]
[1727883401807,0.19674334,61979.0,61978.0,0.00954547]
[1727883402030,0.19674334,61979.0,61978.0,0.17089247]
[1727883402272,0.01002,61979.0,61978.0,0.17089247]
[1727883402946,0.01002,61979.0,61978.0,0.00954547]
[1727883403166,0.01002,61979.0,61978.0,0.17089247]
[1727883403418,0.01002,61979.0,61978.0,0.20330247]
[1727883404098,0.00402,61979.0,61978.0,0.16989247]
[1727883404314,0.00102,61979.0,61978.0,0.16989247]
[1727883404544,0.01002,61979.0,61978.0,0.17089247]
[1727883404809,0.00702,61979.0,61978.0,0.17089247]
[1727883405028,0.00702,61979.0,61978.0,0.16989247]
[1727883405029,0.00102,61979.0,61978.0,0.16989247]
[1727883405461,0.00702,61979.0,61978.0,0.17089247]
[1727883405937,0.00102,61979.0,61978.0,0.16989247]
[1727883406136,0.162364,61979.0,61978.0,0.01654547]
[1727883406351,0.08132,61979.0,61978.0,0.00854547]
[1727883406577,0.242664,61979.0,61978.0,0.00854326]
[1727883406788,0.243664,61979.0,61978.0,0.00854326]
[1727883407020,0.242664,61979.0,61978.0,0.00174]
[1727883407241,0.242664,61979.0,61978.0,0.00854326]
[1727883407484,0.245664,61979.0,61978.0,0.00174]
[1727883407709,0.345664,61979.0,61978.0,0.00174]
[1727883407942,0.345664,61979.0,61972.0,0.00164]
[1727883407943,0.44808334,61973.0,61972.0,0.00164]
[1727883408824,0.26136,61973.0,61972.0,0.0080967]
[1727883409029,0.26136,61973.0,61972.0,0.00164]
[1727883409486,0.27036,61973.0,61972.0,0.0090967]
[1727883409701,0.27036,61973.0,61972.0,0.00164]
[1727883409702,0.26136,61973.0,61972.0,0.00164]
[1727883409906,0.26136,61973.0,61972.0,0.0080967]
[1727883410124,0.45508334,61973.0,61972.0,0.00264]
[1727883410358,0.45508334,61973.0,61972.0,0.00164]
[1727883410877,0.47008334,61973.0,61972.0,0.00364]
[1727883411125,0.46308334,61973.0,61972.0,0.00164]
[1727883411352,0.45508334,61973.0,61972.0,0.0080967]
[1727883411567,0.57413307,61973.0,61972.0,0.00264]
[1727883412002,0.56613307,61973.0,61972.0,0.00164]
[1727883412216,0.56613307,61973.0,61972.0,0.00264]
[1727883412217,0.57413307,61973.0,61972.0,0.00264]
[1727883412454,0.58113307,61973.0,61972.0,0.00364]
[1727883412700,0.66993307,61973.0,61972.0,0.00264]
[1727883412911,0.67193307,61973.0,61972.0,0.00364]
[1727883413129,0.68093307,61973.0,61972.0,0.00364]
[1727883413342,0.68093307,61973.0,61972.0,0.00264]
[1727883413343,0.67193307,61973.0,61972.0,0.00264]
[1727883413560,0.68093307,61973.0,61972.0,0.00364]
[1727883414242,0.67293307,61973.0,61972.0,0.00264]
[1727883414448,0.68093307,61973.0,61972.0,0.00364]
[1727883415090,0.67293307,61973.0,61972.0,0.00264]
[1727883415509,0.68093307,61973.0,61972.0,0.00364]
[1727883417961,0.017,61973.0,61972.0,0.165003]
[1727883418191,0.017,61973.0,61972.0,0.17331047]
[1727883418415,0.017,61973.0,61972.0,0.20894754]
[1727883418643,0.017,61973.0,61972.0,0.17331047]
[1727883418864,0.009,61973.0,61972.0,0.17231047]
[1727883419089,0.00102,61979.0,61972.0,0.00994747]
[1727883419305,0.00102,61979.0,61978.0,0.161347]
[1727883419766,0.00102,61979.0,61978.0,0.16963595]
[1727883420778,0.00302,61979.0,61978.0,0.16963595]
[1727883421497,0.00602,61979.0,61978.0,0.16963595]
[1727883421910,0.00602,61979.0,61978.0,0.20199595]
[1727883421911,0.00302,61979.0,61978.0,0.20199595]
[1727883422185,0.00602,61979.0,61978.0,0.20199595]
[1727883422633,0.00402,61979.0,61978.0,0.20199595]
[1727883422872,0.00302,61979.0,61978.0,0.20199595]
[1727883423088,0.00102,61979.0,61978.0,0.20199595]
[1727883424228,0.00202,61979.0,61978.0,0.20899595]
[1727883424446,0.00202,61979.0,61978.0,0.21499595]
[1727883426399,0.00202,61979.0,61978.0,0.18263595]
[1727883426621,0.163364,61979.0,61978.0,0.02128895]
[1727883426844,0.263364,61979.0,61978.0,0.02128895]
[1727883427065,0.263364,61979.0,61978.0,0.013]
[1727883427506,0.322704,61977.0,61969.0,0.163008]
[1727883427723,0.322704,61977.0,61973.0,0.24382909]
[1727883427939,0.277364,61979.0,61978.0,0.00264]
[1727883428365,0.270364,61979.0,61978.0,0.00164]
[1727883429031,0.30287209,61979.0,61978.0,0.00164]
[1727883429481,0.31187209,61979.0,61978.0,0.00264]
[1727883429698,0.30287209,61979.0,61978.0,0.00164]
[1727883429933,0.31187209,61979.0,61978.0,0.00264]
[1727883430151,0.59152695,61979.0,61978.0,0.00264]
[1727883430366,0.58252695,61979.0,61978.0,0.00164]
[1727883430619,0.61452695,61979.0,61978.0,0.00264]
[1727883430830,0.61452695,61979.0,61978.0,0.00164]
[1727883430831,0.60752695,61979.0,61978.0,0.00164]
[1727883431088,0.60752695,61979.0,61978.0,0.00264]
[1727883431330,0.61452695,61979.0,61978.0,0.00264]
[1727883431589,0.61452695,61979.0,61972.0,0.00164]
[1727883431590,0.1837,61969.0,61960.0,0.24382909]
[1727883431806,0.284373,61968.0,61967.0,0.24382909]
[1727883432029,0.286391,61961.0,61960.0,0.24382909]
[1727883432258,0.56604586,61961.0,61960.0,0.24382909]
[1727883432518,0.56604586,61961.0,61951.0,0.24382909]
[1727883432519,0.54306986,61952.0,61951.0,0.24382909]
[1727883432740,0.54306986,61952.0,61937.0,0.56673309]
[1727883432741,0.161451,61938.0,61937.0,0.24382909]
[1727883432975,0.44110586,61938.0,61937.0,0.24382909]
[1727883433260,0.44110586,61938.0,61932.0,0.161466]
[1727883433494,0.27965486,61938.0,61934.0,0.16146]
[1727883433756,0.161449,61939.0,61934.0,0.161462]
[1727883433966,0.005,61938.0,61937.0,0.001]
[1727883434179,0.005,61938.0,61930.0,0.24382909]
[1727883434392,0.161457,61936.0,61931.0,0.161467]
[1727883434605,0.005,61938.0,61932.0,0.161466]
[1727883434606,0.161455,61937.0,61932.0,0.161466]
[1727883434814,0.009,61938.0,61930.0,0.322943]
[1727883435043,0.009,61938.0,61933.0,0.322925]
[1727883435260,0.009,61938.0,61937.0,0.161454]
[1727883435481,0.013,61938.0,61937.0,0.161454]
[1727883436139,0.28865486,61938.0,61918.0,0.00164]
[1727883436379,0.161459,61936.0,61931.0,0.24382909]
[1727883436602,0.29265486,61938.0,61934.0,0.161461]
[1727883436603,0.165453,61938.0,61934.0,0.161461]
[1727883436818,0.165453,61938.0,61930.0,0.16147]
[1727883436819,0.161462,61934.0,61930.0,0.16147]
[1727883437064,0.161461,61935.0,61931.0,0.161469]
[1727883437494,0.003,61936.0,61933.0,0.161463]
[1727883437740,0.003,61936.0,61928.0,0.161477]
[1727883437945,0.28365486,61938.0,61927.0,0.03236]
[1727883438169,0.28365486,61938.0,61930.0,0.161471]
[1727883438170,0.001,61934.0,61930.0,0.161471]
[1727883438429,0.28465486,61938.0,61931.0,0.00827399]
[1727883438649,0.161465,61933.0,61931.0,0.00827399]
[1727883438862,0.161465,61933.0,61928.0,0.161476]
[1727883439108,0.161465,61933.0,61932.0,0.00827023]
[1727883439333,0.27965486,61932.0,61925.0,0.24382909]
[1727883439557,0.161473,61930.0,61926.0,0.161481]
[1727883439768,0.161468,61932.0,61928.0,0.161477]
[1727883439993,0.161468,61932.0,61929.0,0.00828715]
[1727883440411,0.161463,61934.0,61931.0,0.00164]
[1727883440626,0.161465,61933.0,61931.0,0.00164]
[1727883440850,0.161467,61932.0,61931.0,0.00164]
[1727883441294,0.27016379,61932.0,61931.0,0.00164]
[1727883441520,0.39316379,61932.0,61931.0,0.00164]
[1727883442373,0.39916379,61932.0,61931.0,0.00164]
[1727883442831,0.39516379,61932.0,61931.0,0.00164]
[1727883443302,0.40916379,61932.0,61931.0,0.00164]
[1727883443744,0.41416379,61932.0,61931.0,0.00264]
[1727883444918,0.41416379,61932.0,61918.0,0.00164]
[1727883444919,0.44115586,61919.0,61918.0,0.00164]
[1727883445161,0.54115586,61919.0,61918.0,0.00164]
[1727883445410,0.54115586,61919.0,61918.0,0.24546909]
[1727883445411,0.64455586,61919.0,61918.0,0.24546909]
[1727883445660,0.64455586,61919.0,61918.0,0.00164]
[1727883445908,0.161499,61920.0,61918.0,0.00164]
[1727883446135,0.161489,61924.0,61920.0,0.161497]
[1727883446355,0.422982,61923.0,61918.0,0.00164]
[1727883446581,0.26149,61923.0,61921.0,0.00833884]
[1727883446807,0.1,61923.0,61922.0,0.00833508]
[1727883447029,0.26149,61923.0,61922.0,0.00833508]
[1727883447249,0.1615,61920.0,61918.0,0.00164]
[1727883447467,0.161501,61919.0,61918.0,0.00164]
[1727883447699,0.161501,61919.0,61918.0,0.00264]
[1727883447960,0.322974,61925.0,61918.0,0.00164]
[1727883448171,0.52348395,61926.0,61918.0,0.00164]
[1727883448402,0.161496,61921.0,61919.0,0.00834636]
[1727883448687,0.44115286,61920.0,61919.0,0.00834636]
[1727883448909,0.54115286,61920.0,61919.0,0.00834636]
[1727883449129,0.54115286,61920.0,61918.0,0.00164]
[1727883449130,0.261501,61919.0,61918.0,0.00164]
[1727883450043,0.161501,61919.0,61918.0,0.00164]
[1727883450692,0.007,61923.0,61918.0,0.00164]
[1727883450693,0.329986,61923.0,61918.0,0.00164]
[1727883450955,0.322986,61923.0,61918.0,0.00164]
[1727883451212,0.161498,61920.0,61919.0,0.00834636]
[1727883451642,0.161501,61919.0,61918.0,0.00164]
[1727883452078,0.161501,61919.0,61918.0,0.01099755]
[1727883452290,0.161501,61919.0,61918.0,0.00264]
[1727883452719,0.172501,61919.0,61918.0,0.00264]
[1727883453377,0.161501,61919.0,61918.0,0.00264]
[1727883453615,0.322981,61923.0,61918.0,0.00164]
[1727883453829,0.005,61919.0,61918.0,0.00164]
[1727883454053,0.166501,61919.0,61918.0,0.00164]
[1727883454297,0.166501,61919.0,61918.0,0.00999755]
[1727883454518,0.166501,61919.0,61918.0,0.00164]
[1727883454737,0.161501,61919.0,61918.0,0.00999755]
[1727883454966,0.166501,61919.0,61918.0,0.00264]
[1727883455414,0.005,61919.0,61918.0,0.00264]
[1727883455849,0.005,61919.0,61918.0,0.01099755]
[1727883456065,0.005,61919.0,61918.0,0.00264]
[1727883456336,0.005,61919.0,61918.0,0.01099755]
[1727883456545,0.005,61919.0,61918.0,0.00264]
[1727883456758,0.166501,61919.0,61918.0,0.01099755]
[1727883456970,0.005,61919.0,61918.0,0.00164]
[1727883457155,0.166501,61919.0,61918.0,0.00164]
[1727883457378,0.172501,61919.0,61918.0,0.01099755]
[1727883457631,0.166501,61919.0,61918.0,0.00999755]
[1727883458093,0.171501,61919.0,61918.0,0.01099755]
[1727883458749,0.01,61919.0,61918.0,0.01099755]
[1727883458973,0.171501,61919.0,61918.0,0.01099755]
[1727883459197,0.171501,61919.0,61918.0,0.00264]
[1727883459421,0.171501,61919.0,61918.0,0.01099755]
[1727883459642,0.171501,61919.0,61918.0,0.00264]
[1727883459857,0.171501,61919.0,61918.0,0.01099755]
[1727883460072,0.171501,61919.0,61918.0,0.00264]
[1727883460516,0.01,61919.0,61918.0,0.164143]
[1727883460990,0.01,61919.0,61918.0,0.17573738]
[1727883461211,0.01,61919.0,61918.0,0.20809738]
[1727883462351,0.005,61919.0,61918.0,0.20386758]
[1727883462565,0.322918,61936.0,61918.0,0.04236458]
[1727883462819,0.24382909,61926.0,61923.0,0.03236]
[1727883463042,0.001,61919.0,61918.0,0.17650758]
[1727883463264,0.001,61919.0,61918.0,0.168143]
[1727883463478,0.161481,61927.0,61921.0,0.32299]
[1727883463705,0.161481,61927.0,61923.0,0.161489]
[1727883463924,0.322958,61928.0,61923.0,0.161489]
[1727883463925,0.161483,61926.0,61923.0,0.161489]
[1727883464190,0.322958,61928.0,61921.0,0.322989]
[1727883464191,0.161485,61925.0,61924.0,0.00832619]
[1727883464410,0.60299697,61927.0,61918.0,0.00164]
[1727883464646,0.161491,61923.0,61920.0,0.161497]
[1727883464867,0.161489,61924.0,61920.0,0.161497]
[1727883465085,0.161489,61924.0,61921.0,0.00833747]
[1727883465305,0.161489,61924.0,61921.0,0.16983247]
[1727883466980,0.161489,61924.0,61921.0,0.00833747]
[1727883467206,0.161491,61923.0,61921.0,0.00833747]
[1727883467433,0.004,61924.0,61921.0,0.16983147]
[1727883467664,0.008,61924.0,61923.0,0.16149]
[1727883468124,0.008,61924.0,61923.0,0.16982123]
[1727883469038,0.004,61924.0,61923.0,0.16982123]
[1727883469259,0.161473,61930.0,61926.0,0.322965]
[1727883469479,0.161473,61930.0,61927.0,0.161479]
[1727883469697,0.56676109,61933.0,61927.0,0.161479]
[1727883469698,0.161467,61932.0,61928.0,0.161475]
[1727883469917,0.16147,61931.0,61927.0,0.1697962]
[1727883470136,0.16147,61931.0,61929.0,0.00830868]
[1727883470360,0.4229,61939.0,61929.0,0.322949]
[1727883470586,0.4229,61939.0,61925.0,0.24382909]
[1727883470587,1.06623597,61948.0,61930.0,0.00830492]
[1727883470807,0.322892,61941.0,61924.0,0.03558944]
[1727883471040,0.322892,61941.0,61936.0,0.161454]
[1727883471041,0.40527609,61940.0,61936.0,0.161454]
[1727883471280,0.24382909,61940.0,61935.0,0.322916]
[1727883471512,0.24382909,61947.0,61937.0,0.00827861]
[1727883471771,0.24382909,61947.0,61936.0,0.00828237]
[1727883471772,0.24382909,61940.0,61936.0,0.00828237]
[1727883471994,0.24382909,61947.0,61935.0,0.322917]
[1727883471995,0.322876,61944.0,61935.0,0.322917]
[1727883472221,0.009,61940.0,61936.0,0.33219035]
[1727883472444,0.40525709,61947.0,61936.0,0.00827835]
[1727883472661,0.40525709,61947.0,61942.0,0.161439]
[1727883472662,0.161431,61946.0,61942.0,0.161439]
[1727883472885,0.24382909,61947.0,61942.0,0.32288]
[1727883472886,0.25782909,61947.0,61942.0,0.32288]
[1727883473116,0.25782909,61947.0,61946.0,0.16143]
[1727883473117,0.014,61947.0,61946.0,0.16143]
[1727883473346,0.014,61947.0,61943.0,0.00825205]
[1727883473347,0.161413,61953.0,61948.0,0.161423]
[1727883473578,0.161413,61953.0,61949.0,0.161422]
[1727883473579,0.161412,61953.0,61949.0,0.161422]
[1727883473802,0.56665209,61954.0,61949.0,0.161422]
[1727883473803,0.322831,61952.0,61949.0,0.00822951]
[1727883474034,0.16142,61950.0,61949.0,0.00822951]
[1727883474258,0.161429,61947.0,61943.0,0.161438]
[1727883474492,0.161437,61944.0,61940.0,0.161446]
[1727883474715,0.322846,61949.0,61939.0,0.322896]
[1727883474946,0.322846,61949.0,61941.0,0.161441]
[1727883474947,0.161433,61946.0,61941.0,0.161441]
[1727883475161,0.16143,61946.0,61942.0,0.16144]
[1727883476048,0.164428,61947.0,61943.0,0.161437]
[1727883476269,0.161428,61947.0,61943.0,0.161437]
[1727883476497,0.008,61946.0,61943.0,0.161437]
[1727883476716,0.015,61946.0,61942.0,0.001]
[1727883477166,0.015,61946.0,61942.0,0.323881]
[1727883477168,0.176433,61946.0,61942.0,0.001]
[1727883477399,0.161432,61946.0,61943.0,0.161438]
[1727883477630,0.322771,61964.0,61940.0,0.24382909]
[1727883477857,0.24382909,61954.0,61941.0,0.00322858]
[1727883478083,0.24382909,61954.0,61953.0,0.161412]
[1727883478335,0.322796,61959.0,61944.0,0.03236]
[1727883478336,0.00082,61960.0,61947.0,0.0986]
[1727883478568,0.00082,61960.0,61959.0,0.161397]
[1727883479023,0.162216,61960.0,61955.0,0.322812]
[1727883479248,0.162216,61960.0,61959.0,0.161397]
[1727883479249,0.00082,61960.0,61959.0,0.161397]
[1727883479709,0.00682,61960.0,61959.0,0.161397]
[1727883479952,0.161407,61956.0,61952.0,0.161414]
[1727883480168,0.161407,61956.0,61951.0,0.322832]
[1727883480403,0.00782,61960.0,61950.0,0.322837]
[1727883480404,0.01082,61960.0,61950.0,0.322837]
[1727883480666,0.161403,61957.0,61952.0,0.322829]
[1727883480928,0.165217,61960.0,61950.0,0.322837]
[1727883481173,0.175217,61960.0,61959.0,0.001]
[1727883481393,0.01382,61960.0,61959.0,0.001]
[1727883481680,0.01382,61960.0,61959.0,0.009186]
[1727883481934,0.175214,61960.0,61959.0,0.001]
[1727883482229,0.01382,61960.0,61959.0,0.009186]
[1727883482410,0.00382,61960.0,61957.0,0.161401]
[1727883482646,0.01082,61960.0,61959.0,0.169583]
[1727883483124,0.01082,61960.0,61959.0,0.201943]
[1727883483400,0.00082,61960.0,61959.0,0.204762]
[1727883483913,0.00382,61960.0,61959.0,0.172402]
[1727883484181,0.00382,61960.0,61959.0,0.386362]
[1727883484436,0.00482,61960.0,61959.0,0.391543]
[1727883485655,0.00382,61960.0,61959.0,0.383543]
[1727883486126,0.00182,61960.0,61959.0,0.391543]
[1727883486361,0.00182,61960.0,61959.0,0.383543]
[1727883486623,0.00282,61960.0,61959.0,0.391543]
[1727883486885,0.00182,61960.0,61959.0,0.67772971]
[1727883487117,0.00282,61960.0,61959.0,0.68272971]
[1727883487351,0.00282,61960.0,61959.0,0.65172971]
[1727883487352,0.00182,61960.0,61959.0,0.65172971]
[1727883487846,0.00082,61960.0,61959.0,0.65172971]
[1727883488086,0.00182,61960.0,61959.0,0.65972971]
[1727883488332,0.00182,61960.0,61959.0,0.65472971]
[1727883488806,0.00182,61960.0,61959.0,0.65672971]
[1727883489566,0.00282,61960.0,61959.0,0.65672971]
[1727883490027,0.00182,61960.0,61959.0,0.64872971]
[1727883490287,0.00282,61960.0,61959.0,0.65672971]
[1727883490557,0.00282,61960.0,61959.0,0.67172971]
[1727883490794,0.00282,61960.0,61959.0,0.64172971]
[1727883491326,0.00382,61960.0,61959.0,0.64972971]
[1727883491848,0.00382,61960.0,61959.0,0.46682971]
[1727883492842,0.00382,61960.0,61959.0,0.45882971]
[1727883492843,0.00082,61960.0,61959.0,0.45882971]
[1727883493073,0.00282,61960.0,61959.0,0.46682971]
[1727883493278,0.00282,61960.0,61959.0,0.45882971]
[1727883493664,0.00282,61960.0,61959.0,0.46682971]
[1727883493888,0.00282,61960.0,61959.0,0.45882971]
[1727883494369,0.00182,61960.0,61959.0,0.45882971]
[1727883494607,0.00382,61960.0,61959.0,0.46682971]
[1727883495128,0.00382,61960.0,61959.0,0.303643]
[1727883495371,0.00382,61960.0,61959.0,0.204943]
[1727883495864,0.00382,61960.0,61959.0,0.164583]
[1727883495865,0.00182,61960.0,61959.0,0.164583]
[1727883496210,0.00282,61960.0,61959.0,0.172583]
[1727883496437,0.00282,61960.0,61959.0,0.008186]
[1727883496438,0.241814,61960.0,61959.0,0.008186]
[1727883496679,0.26811754,61960.0,61959.0,0.011186]
[1727883496947,0.242814,61960.0,61959.0,0.011186]
[1727883497189,0.161405,61956.0,61952.0,0.40524209]
[1727883497465,0.161405,61956.0,61953.0,0.161412]
[1727883497663,0.161405,61956.0,61953.0,0.17233369]
[1727883497910,0.161408,61955.0,61953.0,0.01092169]
[1727883498152,0.322804,61957.0,61953.0,0.01092169]
[1727883498419,0.322804,61957.0,61953.0,0.161412]
[1727883498420,0.161406,61956.0,61953.0,0.161412]
[1727883498688,0.161406,61956.0,61952.0,0.161414]
[1727883498969,0.161406,61956.0,61954.0,0.01090881]
[1727883499201,0.161406,61956.0,61953.0,0.01091406]
[1727883499202,0.16141,61954.0,61953.0,0.01091406]
[1727883499443,0.16141,61954.0,61939.0,0.24382909]
[1727883499444,0.002,61952.0,61939.0,0.24382909]
[1727883499679,0.51908197,61940.0,61939.0,0.24382909]
[1727883500127,0.51908197,61940.0,61933.0,0.00164]
[1727883500128,0.161462,61934.0,61933.0,0.00164]
[1727883501036,0.44149797,61934.0,61933.0,0.00164]
[1727883501280,0.56881375,61934.0,61933.0,0.00164]
[1727883501504,0.45280048,61934.0,61933.0,0.00164]
[1727883501730,0.46080048,61934.0,61933.0,0.00164]
[1727883501948,0.54040048,61934.0,61933.0,0.00164]
[1727883502680,0.161488,61924.0,61923.0,0.00164]
[1727883502914,0.73213679,61924.0,61923.0,0.00164]
[1727883503134,0.70913679,61924.0,61923.0,0.00164]
[1727883504443,0.72313679,61924.0,61923.0,0.00164]
[1727883504892,0.61833679,61924.0,61923.0,0.00164]
[1727883505109,0.64365954,61924.0,61923.0,0.00164]
[1727883505769,0.02532275,61924.0,61923.0,0.00164]
[1727883505987,0.03932275,61924.0,61923.0,0.00164]
[1727883506209,0.175488,61924.0,61923.0,0.00164]
[1727883506419,0.189488,61924.0,61923.0,0.01845074]
[1727883506655,0.175488,61924.0,61923.0,0.00164]
[1727883506870,0.161487,61925.0,61923.0,0.00164]
[1727883507090,0.32293,61933.0,61923.0,0.00164]